fUSD/lending_fUSD_20260109
["ID","MTS","AMOUNT","RATE_DAILY","PERIOD"]
[401089289,1767916942935,1764.85,5.523e-05,2]
[401089290,1767916943152,1764.85,5.802e-05,2]
[401089291,1767916943354,1664.38531789,6.082e-05,2]
[401089292,1767916943377,100.46468211,6.082e-05,2]
[401089293,1767916943576,1764.85,6.361e-05,2]
[401089294,1767916943774,1764.85,6.64e-05,2]
[401089295,1767916943992,1764.85,6.919e-05,2]
[401089296,1767916944190,1764.85,7.199e-05,2]
[401089297,1767916944412,1764.85,7.478e-05,2]
[401089298,1767916944613,1075.29531789,7.757e-05,2]
[401089299,1767916944639,689.55468211,7.757e-05,2]
[401089300,1767916944842,1764.85,8.037e-05,2]
[401089301,1767916945052,1764.85,8.316e-05,2]
[401089302,1767916945285,1764.85,8.595e-05,2]
[401089303,1767916945535,1764.85,8.874e-05,2]
[401089304,1767916945735,1764.85,9.154e-05,2]
[401089305,1767916945943,486.20531789,9.433e-05,2]
[401089306,1767916945966,1278.64468211,9.433e-05,2]
[401089307,1767916946171,1764.85,9.712e-05,2]
[401089308,1767916946369,1764.85,9.992e-05,2]
[401089309,1767916946569,1764.85,0.00010271,2]
[401089310,1767916957613,-311.8925321,0.0001055,2]
[401089311,1767916960229,-257.47850945,0.0001055,2]
[401089312,1767916964132,-303.05554958,0.0001055,2]
[401089313,1767916966931,-280.60972387,0.0001055,2]
[401089314,1767916974423,-385.97049723,0.0001055,2]
[401089315,1767917079265,-225.84318777,0.0001055,2]
[401089316,1767917079287,-1852.42,0.00010726,2]
[401089317,1767917079308,-1764.85,0.00010829,2]
[401089318,1767917079329,-273.1107,0.00011187,2]
[401089319,1767917079350,-166.66,0.00011286,2]
[401089320,1767917079371,-300.0,0.00011336,2]
[401089321,1767917079392,-250.0,0.00011386,2]
[401089322,1767917079412,-150.0,0.00011459,2]
[401089323,1767917079432,-150.0,0.00011459,2]
[401089324,1767917079451,-500.0,0.00011459,2]
[401089325,1767917079473,-150.0,0.00011459,2]
[401089326,1767917079492,-150.0,0.00011459,2]
[401089327,1767917079512,-150.0,0.00011459,2]
[401089328,1767917079533,-500.0,0.00011459,2]
[401089329,1767917079554,-250.0,0.00011473,2]
[401089330,1767917079574,-150.0,0.00011485,2]
[401089331,1767917079594,-300.0,0.00011485,2]
[401089332,1767917079615,-972.0,0.00011486,2]
[401089333,1767917079637,-500.0,0.00011486,2]
[401089334,1767917079657,-250.0,0.00011486,2]
[401089335,1767917079678,-195.0,0.00011513,2]
[401089336,1767917079698,-17970.35,0.00011513,2]
[401089337,1767917079717,-1336.36,0.00011513,2]
[401089338,1767917079740,-500.0,0.00011514,2]
[401089339,1767917079760,-190.19225777,0.00011514,2]
[401089340,1767917080065,-500.0,0.00011514,2]
[401089341,1767917080090,-1200.0,0.0001154,2]
[401089342,1767917080111,-972.0,0.00011541,2]
[401089343,1767917080131,-500.0,0.00011541,2]
[401089344,1767917080151,-550.0,0.00011569,2]
[401089345,1767917080173,-972.0,0.00011596,2]
[401089346,1767917080191,-500.0,0.00011596,2]
[401089347,1767917080211,-300.0,0.00011605,2]
[401089348,1767917080232,-300.0,0.00011605,2]
[401089349,1767917080253,-300.0,0.00011605,2]
[401089350,1767917080275,-972.0,0.0001165,2]
[401089351,1767917080299,-500.0,0.0001165,2]
[401089352,1767917080323,-166.66,0.00011659,2]
[401089353,1767917080343,-500.0,0.00011661,2]
[401089354,1767917080363,-2858.9006,0.00011662,2]
[401089355,1767917080382,-2500.0,0.00011662,2]
[401089356,1767917080408,-195.0,0.00011674,2]
[401089357,1767917080432,-972.0,0.00011705,2]
[401089358,1767917080452,-1146.201,0.00011732,2]
[401089359,1767917080474,-8476.5507245,0.00011734,2]
[401089360,1767917080494,-151.0,0.00011755,2]
[401089361,1767917080515,-151.0,0.00011755,2]
[401089362,1767917080535,-151.0,0.00011755,2]
[401089363,1767917080560,-151.0,0.00011755,2]
[401089364,1767917080581,-151.0,0.00011755,2]
[401089365,1767917080604,-151.0,0.00011755,2]
[401089366,1767917080625,-151.0,0.00011755,2]
[401089367,1767917080647,-151.0,0.00011755,2]
[401089368,1767917080668,-151.0,0.00011755,2]
[401089369,1767917080689,-151.0,0.00011755,2]
[401089370,1767917080710,-266.83013068,0.00011755,2]
[401089371,1767917080734,-151.0,0.00011755,2]
[401089372,1767917080756,-151.0,0.00011755,2]
[401089373,1767917080779,-151.0,0.00011755,2]
[401089374,1767917080799,-151.0,0.00011755,2]
[401089375,1767917080822,-151.0,0.00011755,2]
[401089376,1767917080843,-151.0,0.00011759,2]
[401089377,1767917080864,-972.0,0.0001176,2]
[401089378,1767917080887,-688767.07139928,0.00011762,2]
[401089379,1767917127399,-500.0,0.00011459,2]
[401089380,1767917127420,-500.0,0.00011459,2]
[401089381,1767917127440,-150.0,0.00011459,2]
[401089382,1767917127463,-150.0,0.00011459,2]
[401089383,1767917127485,-150.0,0.00011459,2]
[401089384,1767917127505,-250.0,0.00011472,2]
[401089385,1767917127526,-300.0,0.00011472,2]
[401089386,1767917127546,-300.0,0.00011485,2]
[401089387,1767917127566,-1200.0,0.00011511,2]
[401089388,1767917127586,-300.0,0.00011511,2]
[401089389,1767917127606,-500.0,0.00011512,2]
[401089390,1767917127626,-500.0,0.00011512,2]
[401089391,1767917127645,-500.0,0.00011512,2]
[401089392,1767917127671,-500.0,0.00011512,2]
[401089393,1767917127698,-500.0,0.00011512,2]
[401089394,1767917127724,-500.0,0.00011512,2]
[401089395,1767917127753,-500.0,0.00011512,2]
[401089396,1767917127779,-500.0,0.00011512,2]
[401089397,1767917127807,-500.0,0.00011512,2]
[401089398,1767917127831,-500.0,0.00011512,2]
[401089399,1767917127858,-500.0,0.00011512,2]
[401089400,1767917127885,-500.0,0.00011512,2]
[401089401,1767917127910,-500.0,0.00011512,2]
[401089402,1767917127934,-500.0,0.00011512,2]
[401089403,1767917127960,-500.0,0.00011512,2]
[401089404,1767917127986,-500.0,0.00011512,2]
[401089405,1767917128011,-500.0,0.00011512,2]
[401089406,1767917128037,-500.0,0.00011512,2]
[401089407,1767917128062,-500.0,0.00011512,2]
[401089408,1767917128086,-500.0,0.00011512,2]
[401089409,1767917128111,-500.0,0.00011512,2]
[401089410,1767917128136,-500.0,0.00011512,2]
[401089411,1767917128160,-500.0,0.00011512,2]
[401089412,1767917128184,-500.0,0.00011512,2]
[401089413,1767917128208,-500.0,0.00011512,2]
[401089414,1767917128232,-500.0,0.00011512,2]
[401089415,1767917128257,-500.0,0.00011512,2]
[401089416,1767917128282,-500.0,0.00011512,2]
[401089417,1767917128307,-500.0,0.00011512,2]
[401089418,1767917128335,-500.0,0.00011512,2]
[401089419,1767917128360,-500.0,0.00011512,2]
[401089420,1767917128386,-500.0,0.00011512,2]
[401089421,1767917128410,-500.0,0.00011512,2]
[401089422,1767917128435,-500.0,0.00011512,2]
[401089423,1767917128458,-500.0,0.00011512,2]
[401089424,1767917128483,-500.0,0.00011512,2]
[401089425,1767917128507,-500.0,0.00011512,2]
[401089426,1767917128531,-500.0,0.00011512,2]
[401089427,1767917128555,-173.91946125,0.00011512,2]
[401089428,1767917128580,-500.0,0.00011512,2]
[401089429,1767917128604,-500.0,0.00011512,2]
[401089430,1767917128629,-500.0,0.00011512,2]
[401089431,1767917128652,-500.0,0.00011512,2]
[401089432,1767917128676,-500.0,0.00011512,2]
[401089433,1767917128700,-500.0,0.00011512,2]
[401089434,1767917128726,-500.0,0.00011512,2]
[401089435,1767917128755,-500.0,0.00011512,2]
[401089436,1767917128780,-500.0,0.00011512,2]
[401089437,1767917128807,-500.0,0.00011512,2]
[401089438,1767917128834,-500.0,0.00011512,2]
[401089439,1767917128857,-500.0,0.00011512,2]
[401089440,1767917128883,-500.0,0.00011512,2]
[401089441,1767917128907,-500.0,0.00011512,2]
[401089442,1767917128932,-399.99999999,0.00011512,2]
[401089443,1767917128955,-500.0,0.00011512,2]
[401089444,1767917128979,-500.0,0.00011512,2]
[401089445,1767917129003,-500.0,0.00011512,2]
[401089446,1767917129027,-500.0,0.00011512,2]
[401089447,1767917129055,-500.0,0.00011512,2]
[401089448,1767917129084,-500.0,0.00011512,2]
[401089449,1767917129106,-784.77,0.00011512,2]
[401089450,1767917129426,-500.0,0.00011512,2]
[401089451,1767917129449,-500.0,0.00011512,2]
[401089452,1767917129469,-302.33857604,0.00011513,2]
[401089453,1767917129490,-500.0,0.00011514,2]
[401089454,1767917129511,-500.0,0.00011514,2]
[401089455,1767917129531,-500.0,0.00011568,2]
[401089456,1767917129553,-500.0,0.00011569,2]
[401089457,1767917129574,-500.0,0.00011569,2]
[401089458,1767917129594,-500.0,0.00011569,2]
[401089459,1767917129615,-500.0,0.00011623,2]
[401089460,1767917129637,-500.0,0.00011623,2]
[401089461,1767917129659,-500.0,0.00011623,2]
[401089462,1767917129678,-500.0,0.00011678,2]
[401089463,1767917129698,-500.0,0.00011678,2]
[401089464,1767917129719,-500.0,0.00011678,2]
[401089465,1767917129742,-243.88401567,0.00011688,2]
[401089466,1767917129763,-243.88401567,0.00011688,2]
[401089467,1767917129784,-199.88185726,0.00011715,2]
[401089468,1767917129807,-221.87281237,0.00011731,2]
[401089469,1767917129832,-478.64366357,0.00011731,2]
[401089470,1767917129852,-511.44761633,0.00011731,2]
[401089471,1767917129875,-217.87803922,0.00011731,2]
[401089472,1767917129895,-500.0,0.00011731,2]
[401089473,1767917129915,-500.0,0.00011731,2]
[401089474,1767917129935,-500.0,0.00011731,2]
[401089475,1767917129956,-450.56040878,0.00011731,2]
[401089476,1767917129976,-500.0,0.00011733,2]
[401089477,1767917129996,-500.0,0.00011733,2]
[401089478,1767917130016,-500.0,0.00011733,2]
[401089479,1767917130040,-311232.92860072,0.00011762,2]
[401089480,1767917130060,-370.90517424,0.00011762,2]
[401089481,1767917130081,-784.77,0.00011786,2]
[401089482,1767917130100,-189.97512683,0.00011788,2]
[401089483,1767917130120,-585.48487047,0.00011788,2]
[401089484,1767917130141,-500.0,0.00011788,2]
[401089485,1767917130161,-500.0,0.00011842,2]
[401089486,1767917130182,-500.0,0.00011843,2]
[401089487,1767917130203,-208.22403406,0.00011897,2]
[401089488,1767917130222,-166.66,0.00012032,2]
[401089489,1767917130242,-784.77,0.0001206,2]
[401089490,1767917130262,-166.66,0.00012329,2]
[401089491,1767917130283,-784.77,0.00012334,2]
[401089492,1767917130302,-166.66,0.00012404,2]
[401089493,1767917130322,-250.0,0.00012415,2]
[401089494,1767917130343,-300.0,0.00012415,2]
[401089495,1767917130364,-166.66,0.00012452,2]
[401089496,1767917130385,-255.0,0.00012553,2]
[401089497,1767917130407,-166.66,0.00012575,2]
[401089498,1767917130431,-243.88401564,0.00012575,2]
[401089499,1767917130452,-243.88401564,0.00012575,2]
[401089500,1767917130471,-193.0,0.00012605,2]
[401089501,1767917130491,-300.0,0.00012605,2]
[401089502,1767917130511,-250.0,0.00012605,2]
[401089503,1767917130532,-300.0,0.00012605,2]
[401089504,1767917130551,-150.0,0.00012605,2]
[401089505,1767917130571,-784.77,0.00012608,2]
[401089506,1767917130591,-195.0,0.00012635,2]
[401089507,1767917130610,-193.0,0.00012635,2]
[401089508,1767917130630,-300.0,0.00012635,2]
[401089509,1767917130651,-420.0,0.00012643,2]
[401089510,1767917130675,-1680.0,0.00012662,2]
[401089511,1767917130695,-166.66,0.00012699,2]
[401089512,1767917130716,-440.34,0.00012775,2]
[401089513,1767917130738,-166.66,0.00012777,2]
[401089514,1767917130763,-166.66,0.00012822,2]
[401089515,1767917130785,-784.77,0.00012882,2]
[401089516,1767917130806,-150.99,0.00012893,2]
[401089517,1767917130838,-2231.21,0.00012893,2]
[401089518,1767917130861,-690.97,0.00012893,2]
[401089519,1767917130884,-19999.99,0.00012893,2]
[401089520,1767917130903,-150.99,0.00012893,2]
[401089521,1767917130924,-166.66,0.00012945,2]
[401089522,1767917130944,-166.66,0.00013149,2]
[401089523,1767917130965,-243.88401564,0.00013463,2]
[401089524,1767917130986,-243.88401564,0.00013463,2]
[401089525,1767917131006,-1000.0,0.00013599,2]
[401089526,1767917131028,-8728.35,0.00013632,2]
[401089527,1767917131048,-500.0,0.00013698,2]
[401089528,1767917131068,-500.0,0.00013698,2]
[401089529,1767917131087,-327.36851874,0.00013698,2]
[401089530,1767917131106,-500.0,0.00013698,2]
[401089531,1767917131127,-483.79003433,0.00013698,2]
[401089532,1767917131148,-500.0,0.00013698,2]
[401089533,1767917131169,-504.66,0.00013698,2]
[401089534,1767917131190,-500.0,0.00013698,2]
[401089535,1767917131210,-500.0,0.00013698,2]
[401089536,1767917131230,-500.0,0.00013698,2]
[401089537,1767917131252,-500.0,0.00013698,2]
[401089538,1767917131273,-397.40808875,0.00013698,2]
[401089539,1767917131293,-502.7457157,0.00013698,2]
[401089540,1767917131313,-500.0,0.00013698,2]
[401089541,1767917131333,-500.0,0.00013698,2]
[401089542,1767917131353,-500.0,0.00013698,2]
[401089543,1767917131373,-622.57091342,0.00013698,2]
[401089544,1767917131393,-500.0,0.00013698,2]
[401089545,1767917131414,-500.0,0.00013698,2]
[401089546,1767917131435,-500.0,0.00013698,2]
[401089547,1767917131458,-500.0,0.00013698,2]
[401089548,1767917131478,-500.0,0.00013698,2]
[401089549,1767917131498,-500.0,0.00013698,2]
[401089550,1767917131519,-500.0,0.00013698,2]
[401089551,1767917131538,-500.0,0.00013698,2]
[401089552,1767917131558,-500.0,0.00013698,2]
[401089553,1767917131578,-500.0,0.00013698,2]
[401089554,1767917131598,-500.0,0.00013698,2]
[401089555,1767917131618,-500.0,0.00013698,2]
[401089556,1767917131637,-500.0,0.00013698,2]
[401089557,1767917131657,-500.0,0.00013698,2]
[401089558,1767917131677,-500.0,0.00013698,2]
[401089559,1767917131697,-500.0,0.00013698,2]
[401089560,1767917131716,-500.0,0.00013698,2]
[401089561,1767917131736,-500.0,0.00013698,2]
[401089562,1767917131761,-500.0,0.00013698,2]
[401089563,1767917131782,-500.0,0.00013698,2]
[401089564,1767917131803,-500.0,0.00013698,2]
[401089565,1767917131823,-500.0,0.00013698,2]
[401089566,1767917131843,-500.0,0.00013698,2]
[401089567,1767917131864,-500.06843701,0.00013698,2]
[401089568,1767917131884,-500.0,0.00013698,2]
[401089569,1767917131907,-500.0,0.00013698,2]
[401089570,1767917131928,-435.97578005,0.00013698,2]
[401089571,1767917131949,-500.0,0.00013698,2]
[401089572,1767917131970,-500.0,0.00013698,2]
[401089573,1767917131992,-433.0,0.00013725,2]
[401089574,1767917132013,-199.88185724,0.0001373,2]
[401089575,1767917132040,-461.95622222,0.00013779,2]
[401089576,1767917132061,-500.0,0.00013789,2]
[401089577,1767917132082,-500.0,0.00013789,2]
[401089578,1767917132103,-587.0,0.00013886,2]
[401089579,1767917132124,-2351.0,0.00013928,2]
[401089580,1767917132144,-151.0,0.00014075,2]
[401089581,1767917132164,-151.0,0.00014075,2]
[401089582,1767917132185,-243.88401564,0.0001435,2]
[401089583,1767917132205,-150.0,0.00014611,2]
[401089584,1767917132225,-500.0,0.00014624,2]
[401089585,1767917132246,-500.0,0.00014624,2]
[401089586,1767917132267,-500.0,0.00014624,2]
[401089587,1767917132288,-500.0,0.00014624,2]
[401089588,1767917132308,-500.0,0.00014624,2]
[401089589,1767917132328,-500.0,0.00014624,2]
[401089590,1767917132349,-500.0,0.00014624,2]
[401089591,1767917132371,-515.32073646,0.00014624,2]
[401089592,1767917132392,-504.66,0.00014624,2]
[401089593,1767917132413,-504.66,0.00014624,2]
[401089594,1767917132434,-504.66,0.00014624,2]
[401089595,1767917132455,-504.66,0.00014624,2]
[401089596,1767917132476,-500.0,0.00014624,2]
[401089597,1767917132497,-500.0,0.00014624,2]
[401089598,1767917132521,-500.0,0.00014624,2]
[401089599,1767917132543,-500.0,0.00014624,2]
[401089600,1767917132565,-500.0,0.00014624,2]
[401089601,1767917132586,-500.0,0.00014624,2]
[401089602,1767917132609,-500.0,0.00014624,2]
[401089603,1767917132632,-500.0,0.00014624,2]
[401089604,1767917132656,-500.0,0.00014624,2]
[401089605,1767917132677,-500.0,0.00014624,2]
[401089606,1767917132704,-500.0,0.00014624,2]
[401089607,1767917132726,-361.82992148,0.00014624,2]
[401089608,1767917132751,-500.0,0.00014624,2]
[401089609,1767917132775,-500.0,0.00014624,2]
[401089610,1767917132798,-500.0,0.00014624,2]
[401089611,1767917132820,-500.0,0.00014624,2]
[401089612,1767917132842,-151.0,0.00014728,2]
[401089613,1767917132863,-151.0,0.00014728,2]
[401089614,1767917132885,-470.36063607,0.00014763,2]
[401089615,1767917132907,-500.0,0.00014763,2]
[401089616,1767917132928,-163.52539534,0.00014763,2]
[401089617,1767917132949,-500.0,0.00014763,2]
[401089618,1767917132970,-500.0,0.00014763,2]
[401089619,1767917132991,-500.0,0.00014763,2]
[401089620,1767917133012,-165.92505887,0.00014763,2]
[401089621,1767917133034,-501.12934811,0.00014763,2]
[401089622,1767917133055,-500.0,0.00014763,2]
[401089623,1767917133077,-177.11908625,0.00014763,2]
[401089624,1767917133098,-500.0,0.00014763,2]
[401089625,1767917133123,-500.10852464,0.00014763,2]
[401089626,1767917133144,-173.02928843,0.00014763,2]
[401089627,1767917133471,-500.0,0.00014763,2]
[401089628,1767917133492,-500.0,0.00014763,2]
[401089629,1767917133513,-500.0,0.00014763,2]
[401089630,1767917133535,-500.0,0.00014763,2]
[401089631,1767917133555,-165.70843486,0.00014763,2]
[401089632,1767917133577,-500.0,0.00014763,2]
[401089633,1767917133598,-500.0,0.00014763,2]
[401089634,1767917133619,-500.0,0.00014763,2]
[401089635,1767917133639,-500.0,0.00014763,2]
[401089636,1767917133663,-500.0,0.00014763,2]
[401089637,1767917133685,-543.38282097,0.00014763,2]
[401089638,1767917133708,-500.0,0.00014763,2]
[401089639,1767917133731,-500.0,0.00014763,2]
[401089640,1767917133755,-500.0,0.00014763,2]
[401089641,1767917133781,-500.0,0.00014763,2]
[401089642,1767917133803,-500.0,0.00014763,2]
[401089643,1767917133824,-403.01772086,0.00014763,2]
[401089644,1767917133847,-502.72217232,0.00014763,2]
[401089645,1767917133868,-500.0,0.00014763,2]
[401089646,1767917133890,-247.17817809,0.000149,2]
[401089647,1767917133911,-1949.15,0.00014911,2]
[401089648,1767917133931,-736.0,0.00014999,2]
[401089649,1767917133952,-191.0,0.00015,2]
[401089650,1767917133974,-823.0,0.00015251,2]
[401089651,1767917133995,-250.0,0.00015262,2]
[401089652,1767917134017,-500.0,0.0001531,2]
[401089653,1767917134039,-500.0,0.0001531,2]
[401089654,1767917134064,-500.0,0.0001531,2]
[401089655,1767917134084,-500.0,0.0001531,2]
[401089656,1767917134104,-453.03832283,0.0001531,2]
[401089657,1767917134125,-500.0,0.0001531,2]
[401089658,1767917134147,-500.0,0.0001531,2]
[401089659,1767917134169,-500.0,0.0001531,2]
[401089660,1767917134190,-1000.0,0.0001531,2]
[401089661,1767917134212,-3292.0,0.00015321,2]
[401089662,1767917134233,-500.0,0.00015649,2]
[401089663,1767917134263,-500.0,0.00015649,2]
[401089664,1767917134284,-199.88185724,0.00015745,2]
[401089665,1767917134304,-500.0,0.00015802,2]
[401089666,1767917134326,-500.0,0.00015802,2]
[401089667,1767917134347,-500.0,0.00015802,2]
[401089668,1767917134367,-500.0,0.00015802,2]
[401089669,1767917134387,-3180.75325131,0.00015828,2]
[401089670,1767917134408,-1015.15258093,0.00015828,2]
[401089671,1767917134431,-1500.0,0.00015858,2]
[401089672,1767917134452,-1000.0,0.00015918,2]
[401089673,1767917134472,-9999.99,0.00016116,2]
[401089674,1767917134493,-440.34,0.00016311,2]
[401089675,1767917134514,-1252.0,0.00016389,2]
[401089676,1767917134535,-2000.0,0.00016406,2]
[401089677,1767917134556,-2195.8,0.00016438,2]
[401089678,1767917134579,-500.0,0.00016438,2]
[401089679,1767917134602,-500.0,0.00016438,2]
[401089680,1767917134625,-500.0,0.00016438,2]
[401089681,1767917134648,-500.0,0.00016438,2]
[401089682,1767917134671,-500.0,0.00016438,2]
[401089683,1767917134692,-500.0,0.00016438,2]
[401089684,1767917134714,-500.0,0.00016438,2]
[401089685,1767917134736,-500.0,0.00016438,2]
[401089686,1767917134760,-500.0,0.00016438,2]
[401089687,1767917134783,-500.0,0.00016438,2]
[401089688,1767917134805,-500.0,0.00016438,2]
[401089689,1767917134827,-500.0,0.00016438,2]
[401089690,1767917134848,-500.0,0.00016438,2]
[401089691,1767917134870,-500.0,0.00016438,2]
[401089692,1767917134892,-500.0,0.00016438,2]
[401089693,1767917134915,-500.0,0.00016438,2]
[401089694,1767917134939,-500.0,0.00016438,2]
[401089695,1767917134962,-500.0,0.00016438,2]
[401089696,1767917134984,-500.0,0.00016438,2]
[401089697,1767917135006,-500.0,0.00016438,2]
[401089698,1767917135029,-500.0,0.00016438,2]
[401089699,1767917135051,-500.0,0.00016438,2]
[401089700,1767917135073,-500.0,0.00016438,2]
[401089701,1767917135095,-500.0,0.00016438,2]
[401089702,1767917135117,-500.0,0.00016438,2]
[401089703,1767917135139,-500.0,0.00016438,2]
[401089704,1767917135161,-500.0,0.00016438,2]
[401089705,1767917135183,-500.0,0.00016438,2]
[401089706,1767917135206,-500.0,0.00016438,2]
[401089707,1767917135231,-500.0,0.00016438,2]
[401089708,1767917135253,-500.0,0.00016438,2]
[401089709,1767917135276,-533.62352811,0.00016438,2]
[401089710,1767917135298,-500.0,0.00016438,2]
[401089711,1767917135321,-500.0,0.00016438,2]
[401089712,1767917135346,-500.0,0.00016438,2]
[401089713,1767917135369,-500.0,0.00016438,2]
[401089714,1767917135393,-500.0,0.00016438,2]
[401089715,1767917135416,-500.0,0.00016438,2]
[401089716,1767917135438,-500.0,0.00016438,2]
[401089717,1767917135460,-500.0,0.00016438,2]
[401089718,1767917135481,-500.0,0.00016438,2]
[401089719,1767917135502,-500.0,0.00016438,2]
[401089720,1767917135525,-500.0,0.00016438,2]
[401089721,1767917135546,-500.0,0.00016438,2]
[401089722,1767917135567,-500.0,0.00016438,2]
[401089723,1767917135589,-500.0,0.00016438,2]
[401089724,1767917135612,-500.0,0.00016438,2]
[401089725,1767917135636,-500.0,0.00016438,2]
[401089726,1767917135658,-500.0,0.00016438,2]
[401089727,1767917135680,-500.0,0.00016438,2]
[401089728,1767917135702,-500.0,0.00016438,2]
[401089729,1767917135724,-500.0,0.00016438,2]
[401089730,1767917135747,-500.0,0.00016438,2]
[401089731,1767917135775,-550.0,0.00016438,2]
[401089732,1767917135798,-500.0,0.00016438,2]
[401089733,1767917135823,-500.0,0.00016438,2]
[401089734,1767917135846,-500.0,0.00016438,2]
[401089735,1767917135868,-500.0,0.00016438,2]
[401089736,1767917135890,-500.0,0.00016438,2]
[401089737,1767917135912,-500.0,0.00016438,2]
[401089738,1767917135934,-500.0,0.00016438,2]
[401089739,1767917135957,-500.0,0.00016438,2]
[401089740,1767917135979,-500.0,0.00016438,2]
[401089741,1767917136001,-500.0,0.00016438,2]
[401089742,1767917136023,-500.0,0.00016438,2]
[401089743,1767917136045,-155.0,0.00016438,2]
[401089744,1767917136067,-500.0,0.00016438,2]
[401089745,1767917136088,-500.0,0.00016438,2]
[401089746,1767917136110,-500.0,0.00016438,2]
[401089747,1767917136132,-500.0,0.00016438,2]
[401089748,1767917136155,-195.4,0.00016438,2]
[401089749,1767917136175,-603.12603829,0.00016438,2]
[401089750,1767917136196,-500.0,0.00016438,2]
[401089751,1767917136216,-164.72,0.0001644,2]
[401089752,1767917136237,-1000.0,0.00016515,2]
[401089753,1767917136257,-500.0,0.00016589,2]
[401089754,1767917136278,-157.72323008,0.00016608,2]
[401089755,1767917136300,-2195.8,0.00016712,2]
[401089756,1767917136325,-1152.0,0.00016751,2]
[401089757,1767917136347,-265.19,0.00016839,2]
[401089758,1767917136370,-4609.0,0.00016853,2]
[401089759,1767917136391,-500.0,0.00016903,2]
[401089760,1767917136412,-500.0,0.00016903,2]
[401089761,1767917136434,-3738.4311,0.00016904,2]
[401089762,1767917136460,-659.3,0.00016918,2]
[401089763,1767917136483,-2500.0,0.00016954,2]
[401089764,1767917136507,-504.66,0.00016986,2]
[401089765,1767917136530,-2195.8,0.00016986,2]
[401089766,1767917136552,-250.0,0.00017,2]
[401089767,1767917136573,-200.0,0.00017,2]
[401089768,1767917136594,-3032.44949746,0.00017,2]
[401089769,1767917136616,-482.72,0.00017041,2]
[401089770,1767917136637,-482.72,0.00017041,2]
[401089771,1767917136657,-482.72,0.00017041,2]
[401089772,1767917136678,-500.0,0.00017098,2]
[401089773,1767917136699,-500.0,0.00017098,2]
[401089774,1767917136720,-500.0,0.00017098,2]
[401089775,1767917136742,-158.1506329,0.00017098,2]
[401089776,1767917136766,-322.6107,0.00017099,2]
[401089777,1767917136787,-166.77833559,0.00017099,2]
[401089778,1767917136808,-359.76179104,0.00017099,2]
[401089779,1767917136830,-500.0,0.00017099,2]
[401089780,1767917136852,-1500.0,0.00017099,2]
[401089781,1767917136873,-500.0,0.00017099,2]
[401089782,1767917136895,-1500.0,0.00017099,2]
[401089783,1767917136916,-500.0,0.00017099,2]
[401089784,1767917136939,-1500.0,0.00017099,2]
[401089785,1767917136960,-250.0,0.00017099,2]
[401089786,1767917136982,-1500.0,0.00017099,2]
[401089787,1767917137004,-1500.0,0.00017099,2]
[401089788,1767917137025,-1500.0,0.00017099,2]